[Event "*** Titled Tuesday 3|2 Blitz (Early)"]
[Site "Chess.com"]
[Date "2016.11.01"]
[Round "5"]
[White "Alexander_Moskalenko"]
[Black "Zaven_ChessMood"]
[Result "0-1"]
[WhiteElo "2696"]
[BlackElo "2701"]
[TimeControl "180+2"]
[EndTime "12:04:34 PDT"]
[Termination "Zaven_ChessMood won on time"]

1. d4 {[%clk 0:03:02]} 1... Nf6 {[%clk 0:02:41]} 2. Nf3 {[%clk 0:03:03.9]} 2...
g6 {[%clk 0:02:39.9]} 3. Nbd2 {[%clk 0:03:03.6]} 3... d5 {[%clk 0:02:40.3]} 4.
e3 {[%clk 0:03:04.8]} 4... Bg7 {[%clk 0:02:41.2]} 5. b4 {[%clk 0:03:06.3]} 5...
O-O {[%clk 0:02:40.2]} 6. c4 {[%clk 0:03:07.4]} 6... Bf5 {[%clk 0:02:35.1]} 7.
Be2 {[%clk 0:03:01.8]} 7... Nc6 {[%clk 0:02:27.6]} 8. a3 {[%clk 0:02:58.3]} 8...
dxc4 {[%clk 0:02:28.4]} 9. Nxc4 {[%clk 0:02:57.6]} 9... Ne4 {[%clk 0:02:26.3]}
10. Bb2 {[%clk 0:02:56.8]} 10... a5 {[%clk 0:02:25.3]} 11. b5 {[%clk 0:02:57.4]}
11... Na7 {[%clk 0:02:26.1]} 12. Nce5 {[%clk 0:02:23.7]} 12... Nd6 {[%clk
0:02:19.3]} 13. a4 {[%clk 0:02:17]} 13... c6 {[%clk 0:02:20.7]} 14. bxc6 {[%clk
0:02:16.7]} 14... Nxc6 {[%clk 0:02:21.5]} 15. Nxc6 {[%clk 0:02:15.5]} 15... bxc6
{[%clk 0:02:22.8]} 16. Rc1 {[%clk 0:02:10.7]} 16... Qb6 {[%clk 0:02:15.1]} 17.
Ba3 {[%clk 0:02:11.2]} 17... Rfd8 {[%clk 0:02:11.7]} 18. Bc5 {[%clk 0:02:07]}
18... Qb7 {[%clk 0:02:06.5]} 19. O-O {[%clk 0:02:03.1]} 19... Ne4 {[%clk
0:02:06.9]} 20. Bd3 {[%clk 0:01:50.5]} 20... e5 {[%clk 0:02:03.3]} 21. Bxe4
{[%clk 0:01:32.2]} 21... Bxe4 {[%clk 0:02:03.8]} 22. Nd2 {[%clk 0:01:28.1]}
22... Bd3 {[%clk 0:02:02]} 23. Re1 {[%clk 0:01:22.3]} 23... exd4 {[%clk
0:02:03]} 24. exd4 {[%clk 0:01:23.2]} 24... Bxd4 {[%clk 0:01:58.7]} 25. Bxd4
{[%clk 0:01:23.9]} 25... Rxd4 {[%clk 0:01:59.7]} 26. Nb3 {[%clk 0:01:25.4]}
26... Rd5 {[%clk 0:01:52.8]} 27. Nc5 {[%clk 0:01:26.1]} 27... Qb4 {[%clk
0:01:29.1]} 28. Nxd3 {[%clk 0:01:22.5]} 28... Qa3 {[%clk 0:01:29.7]} 29. Qc2
{[%clk 0:00:36.1]} 29... Qxd3 {[%clk 0:01:29.5]} 30. Qxc6 {[%clk 0:00:35.3]}
30... Rad8 {[%clk 0:01:28.9]} 31. g3 {[%clk 0:00:31.1]} 31... h5 {[%clk
0:01:28.1]} 32. Re8+ {[%clk 0:00:29]} 32... Kg7 {[%clk 0:01:25.6]} 33. Rxd8
{[%clk 0:00:29.3]} 33... Rxd8 {[%clk 0:01:26.5]} 34. Rc5 {[%clk 0:00:25.5]}
34... h4 {[%clk 0:01:16.1]} 35. Rc1 {[%clk 0:00:17.3]} 35... h3 {[%clk
0:01:14.4]} 36. Rf1 {[%clk 0:00:08.5]} 36... Rd5 {[%clk 0:01:11.5]} 37. Qc8
{[%clk 0:00:08.8]} 37... Rf5 {[%clk 0:01:05.8]} 38. Qc6 {[%clk 0:00:08.7]} 38...
Rd5 {[%clk 0:00:59.7]} 39. Qc8 {[%clk 0:00:09.2]} 39... Rd7 {[%clk 0:00:59.4]}
40. Qc6 {[%clk 0:00:09.6]} 40... Rd8 {[%clk 0:00:54.1]} 41. Re1 {[%clk
0:00:09.7]} 41... Rb8 {[%clk 0:00:45.7]} 42. Qc7 {[%clk 0:00:04.3]} 42... Re8
{[%clk 0:00:43.5]} 0-1

[Event "*** Titled Tuesday 3|2 Blitz (Early)"]
[Site "Chess.com"]
[Date "2016.11.01"]
[Round "5"]
[White "maciek_92"]
[Black "bilelou"]
[Result "1-0"]
[WhiteElo "2549"]
[BlackElo "2354"]
[TimeControl "180+2"]
[EndTime "12:04:39 PDT"]
[Termination "maciek_92 won by checkmate"]

1. c4 {[%clk 0:03:01.9]} 1... e6 {[%clk 0:02:48.7]} 2. Nf3 {[%clk 0:03:02.3]}
2... d5 {[%clk 0:02:48.6]} 3. g3 {[%clk 0:03:00.8]} 3... Nf6 {[%clk 0:02:49.9]}
4. Bg2 {[%clk 0:03:01.5]} 4... dxc4 {[%clk 0:02:51.5]} 5. Qa4+ {[%clk
0:03:01.7]} 5... c6 {[%clk 0:02:52.7]} 6. Qxc4 {[%clk 0:03:02.6]} 6... b5 {[%clk
0:02:54.1]} 7. Qc2 {[%clk 0:03:04.2]} 7... Bb7 {[%clk 0:02:55.6]} 8. O-O {[%clk
0:03:05.7]} 8... a6 {[%clk 0:02:50.6]} 9. d4 {[%clk 0:03:07]} 9... Nbd7 {[%clk
0:02:44.9]} 10. a4 {[%clk 0:03:07.2]} 10... c5 {[%clk 0:02:45]} 11. axb5 {[%clk
0:03:04.5]} 11... axb5 {[%clk 0:02:44.8]} 12. Rxa8 {[%clk 0:03:06.1]} 12... Qxa8
{[%clk 0:02:45.2]} 13. Nc3 {[%clk 0:03:07.7]} 13... b4 {[%clk 0:02:37.5]} 14.
Nb5 {[%clk 0:03:07.9]} 14... Qa5 {[%clk 0:02:38.2]} 15. dxc5 {[%clk 0:02:56.6]}
15... Qxb5 {[%clk 0:02:38.5]} 16. Nd4 {[%clk 0:02:57.1]} 16... Qxc5 {[%clk
0:02:36.9]} 17. Bxb7 {[%clk 0:02:57.3]} 17... Qxd4 {[%clk 0:02:34.6]} 18. Be3
{[%clk 0:02:50.8]} 18... Qd6 {[%clk 0:02:21.8]} 19. Rd1 {[%clk 0:02:13]} 19...
Qb8 {[%clk 0:02:18]} 20. Qc6 {[%clk 0:02:12.2]} 20... Be7 {[%clk 0:02:05.5]} 21.
Bc8 {[%clk 0:02:11.6]} 21... O-O {[%clk 0:01:59]} 22. Bxd7 {[%clk 0:02:11.8]}
22... Nd5 {[%clk 0:01:59.2]} 23. Bc1 {[%clk 0:01:48.1]} 23... Rd8 {[%clk
0:01:58.3]} 24. Bxe6 {[%clk 0:01:48.9]} 24... Nf6 {[%clk 0:00:31.3]} 25. Rxd8+
{[%clk 0:01:40.9]} 25... Qxd8 {[%clk 0:00:31]} 26. Bb3 {[%clk 0:01:41.3]} 26...
h5 {[%clk 0:00:30.5]} 27. Qc4 {[%clk 0:01:41.5]} 27... Qe8 {[%clk 0:00:26.1]}
28. Bg5 {[%clk 0:01:34.6]} 28... g6 {[%clk 0:00:21.3]} 29. Qd4 {[%clk
0:01:09.4]} 29... Nh7 {[%clk 0:00:15.4]} 30. Bd2 {[%clk 0:01:05.8]} 30... Bf6
{[%clk 0:00:14.4]} 31. Qd3 {[%clk 0:01:06.5]} 31... Bxb2 {[%clk 0:00:12.8]} 32.
Qxg6+ {[%clk 0:01:07.2]} 32... Bg7 {[%clk 0:00:12.5]} 33. Bh6 {[%clk 0:01:08]}
33... Qf8 {[%clk 0:00:10.8]} 34. Bd2 {[%clk 0:01:00]} 34... Nf6 {[%clk
0:00:10.3]} 35. Qd3 {[%clk 0:00:40.1]} 35... Qe7 {[%clk 0:00:08.2]} 36. Qc4
{[%clk 0:00:36.2]} 36... Ne4 {[%clk 0:00:08.8]} 37. Bxb4 {[%clk 0:00:34.7]}
37... Qe8 {[%clk 0:00:08.2]} 38. Bc2 {[%clk 0:00:26.6]} 38... Ng5 {[%clk
0:00:09]} 39. h4 {[%clk 0:00:25.8]} 39... Ne6 {[%clk 0:00:09.8]} 40. Qe4 {[%clk
0:00:25.6]} 40... Qc8 {[%clk 0:00:09.6]} 41. Qh7# {[%clk 0:00:26]} 1-0

[Event "*** Titled Tuesday 3|2 Blitz (Early)"]
[Site "Chess.com"]
[Date "2016.11.01"]
[Round "5"]
[White "Morshynska"]
[Black "Iwannabetheguy"]
[Result "1-0"]
[WhiteElo "2146"]
[BlackElo "2035"]
[TimeControl "180+2"]
[EndTime "12:04:55 PDT"]
[Termination "Morshynska won by resignation"]

1. Nf3 {[%clk 0:02:18.6]} 1... Nf6 {[%clk 0:03:00.3]} 2. g3 {[%clk 0:02:19]}
2... g6 {[%clk 0:03:01.6]} 3. Bg2 {[%clk 0:02:20.9]} 3... Bg7 {[%clk 0:03:02.9]}
4. O-O {[%clk 0:02:22.8]} 4... O-O {[%clk 0:03:04.4]} 5. d4 {[%clk 0:02:24.7]}
5... c5 {[%clk 0:03:05]} 6. dxc5 {[%clk 0:02:23]} 6... Na6 {[%clk 0:03:01.8]} 7.
Nbd2 {[%clk 0:02:21.3]} 7... Nxc5 {[%clk 0:03:01.5]} 8. Nb3 {[%clk 0:02:22.8]}
8... d6 {[%clk 0:02:59.5]} 9. c3 {[%clk 0:02:19.1]} 9... Bg4 {[%clk 0:02:58.5]}
10. h3 {[%clk 0:02:19.2]} 10... Be6 {[%clk 0:02:55.3]} 11. Nfd4 {[%clk
0:02:15.6]} 11... Nxb3 {[%clk 0:02:42.2]} 12. Nxe6 {[%clk 0:01:58.1]} 12... fxe6
{[%clk 0:02:39.4]} 13. Qxb3 {[%clk 0:01:58.7]} 13... d5 {[%clk 0:02:40]} 14.
Qxb7 {[%clk 0:01:57.4]} 14... Qd6 {[%clk 0:02:26.8]} 15. Qb3 {[%clk 0:01:48.8]}
15... Rab8 {[%clk 0:02:23.4]} 16. Qa4 {[%clk 0:01:48.3]} 16... a6 {[%clk
0:01:56.9]} 17. Rd1 {[%clk 0:01:39.1]} 17... Qc5 {[%clk 0:01:51.6]} 18. Qxa6
{[%clk 0:01:31.5]} 18... Rb6 {[%clk 0:01:10.4]} 19. Qd3 {[%clk 0:01:31.4]} 19...
Ng4 {[%clk 0:01:01.2]} 20. hxg4 {[%clk 0:01:22.4]} 20... Qxf2+ {[%clk
0:01:00.1]} 21. Kh2 {[%clk 0:01:20]} 21... Be5 {[%clk 0:00:50.1]} 22. Rf1 {[%clk
0:01:10.5]} 22... Qxf1 {[%clk 0:00:50.8]} 23. Bxf1 {[%clk 0:01:12.4]} 23... Rxf1
{[%clk 0:00:51.8]} 24. Qe3 {[%clk 0:01:03.6]} 24... Bc7 {[%clk 0:00:44.2]} 25.
Kg2 {[%clk 0:00:54.7]} 25... Rd1 {[%clk 0:00:40.6]} 26. b3 {[%clk 0:00:49.9]}
26... e5 {[%clk 0:00:34.6]} 27. Bb2 {[%clk 0:00:48.7]} 27... Rxa1 {[%clk
0:00:30.1]} 28. Bxa1 {[%clk 0:00:50.6]} 28... Rf6 {[%clk 0:00:26]} 29. Qc5
{[%clk 0:00:34.3]} 29... Bb6 {[%clk 0:00:24.4]} 30. Qxd5+ {[%clk 0:00:32.5]}
30... Kg7 {[%clk 0:00:25.1]} 31. Kh3 {[%clk 0:00:21.4]} 31... Rf1 {[%clk
0:00:19]} 32. Qxe5+ {[%clk 0:00:20.1]} 32... Kf7 {[%clk 0:00:18.4]} 33. g5
{[%clk 0:00:16.8]} 33... Rxa1 {[%clk 0:00:16.7]} 34. Qd5+ {[%clk 0:00:14.8]}
34... Kf8 {[%clk 0:00:15.7]} 35. Qa8+ {[%clk 0:00:14.4]} 35... Kf7 {[%clk
0:00:15.8]} 36. Qa6 {[%clk 0:00:13.8]} 36... Rh1+ {[%clk 0:00:14.2]} 37. Kg4
{[%clk 0:00:14.3]} 37... Be3 {[%clk 0:00:08.3]} 38. Qc4+ {[%clk 0:00:13.9]}
38... Kf8 {[%clk 0:00:09]} 39. Qe4 {[%clk 0:00:11.2]} 39... h5+ {[%clk
0:00:09.1]} 40. gxh6 {[%clk 0:00:10.9]} 40... Bxh6 {[%clk 0:00:09.6]} 41. Qxh1
{[%clk 0:00:11.6]} 1-0

[Event "*** Titled Tuesday 3|2 Blitz (Early)"]
[Site "Chess.com"]
[Date "2016.11.01"]
[Round "5"]
[White "MateusViageiro"]
[Black "KingFlorida"]
[Result "0-1"]
[WhiteElo "2282"]
[BlackElo "2344"]
[TimeControl "180+2"]
[EndTime "12:04:55 PDT"]
[Termination "KingFlorida won by resignation"]

1. Nf3 {[%clk 0:03:01.9]} 1... Nf6 {[%clk 0:03:00.1]} 2. g3 {[%clk 0:03:03.8]}
2... g6 {[%clk 0:03:01.1]} 3. Bg2 {[%clk 0:03:05.7]} 3... Bg7 {[%clk 0:03:03]}
4. O-O {[%clk 0:03:07.6]} 4... O-O {[%clk 0:03:04.9]} 5. d4 {[%clk 0:03:09.5]}
5... d6 {[%clk 0:03:06]} 6. c4 {[%clk 0:03:11.4]} 6... Nc6 {[%clk 0:03:07.6]} 7.
Nc3 {[%clk 0:03:11.2]} 7... a6 {[%clk 0:03:09.1]} 8. e4 {[%clk 0:03:11.2]} 8...
Bg4 {[%clk 0:03:09.6]} 9. h3 {[%clk 0:03:06.5]} 9... Bxf3 {[%clk 0:03:09.6]} 10.
Bxf3 {[%clk 0:03:07]} 10... Nd7 {[%clk 0:03:11.5]} 11. d5 {[%clk 0:03:07.6]}
11... Na5 {[%clk 0:02:54.5]} 12. Be2 {[%clk 0:03:00.8]} 12... Nb6 {[%clk
0:02:47.7]} 13. b4 {[%clk 0:02:18.2]} 13... Bxc3 {[%clk 0:02:19.5]} 14. bxa5
{[%clk 0:02:19.2]} 14... Bxa1 {[%clk 0:02:16.7]} 15. axb6 {[%clk 0:02:20.4]}
15... cxb6 {[%clk 0:02:18.6]} 16. Qb3 {[%clk 0:02:14.6]} 16... Bd4 {[%clk
0:02:12]} 17. Kg2 {[%clk 0:02:04]} 17... Rc8 {[%clk 0:01:49.4]} 18. h4 {[%clk
0:02:05.9]} 18... h5 {[%clk 0:01:48.9]} 19. Rd1 {[%clk 0:02:01.2]} 19... Bg7
{[%clk 0:01:44.8]} 20. f4 {[%clk 0:02:00.6]} 20... b5 {[%clk 0:01:39.5]} 21.
cxb5 {[%clk 0:01:58.4]} 21... axb5 {[%clk 0:01:41.4]} 22. Bxb5 {[%clk
0:01:57.9]} 22... Qa5 {[%clk 0:01:37]} 23. Bd2 {[%clk 0:01:53.2]} 23... Bc3
{[%clk 0:00:43.6]} 24. Be3 {[%clk 0:01:53.2]} 24... Qb4 {[%clk 0:00:37.8]} 25.
Kf3 {[%clk 0:01:42.1]} 25... Qxb3 {[%clk 0:00:31.2]} 26. axb3 {[%clk 0:01:42.2]}
26... Bb4 {[%clk 0:00:29.1]} 27. Bc4 {[%clk 0:01:41.4]} 27... Ra8 {[%clk
0:00:28.8]} 28. e5 {[%clk 0:01:41.4]} 28... Rfc8 {[%clk 0:00:29.4]} 29. e6
{[%clk 0:01:41.2]} 29... f5 {[%clk 0:00:28.3]} 30. Bd4 {[%clk 0:01:31.7]} 30...
Bc5 {[%clk 0:00:27.9]} 31. Ba1 {[%clk 0:01:27.5]} 31... Ra2 {[%clk 0:00:28.4]}
32. Rf1 {[%clk 0:01:21.6]} 32... Rca8 {[%clk 0:00:16.8]} 33. Bc3 {[%clk
0:01:20.6]} 33... Rc2 {[%clk 0:00:03.3]} 34. Be1 {[%clk 0:01:21.1]} 34... Raa2
{[%clk 0:00:04.3]} 35. Bb5 {[%clk 0:01:09]} 35... Rab2 {[%clk 0:00:04]} 36. Bc4
{[%clk 0:01:07.7]} 36... Bd4 {[%clk 0:00:05.4]} 37. Bd3 {[%clk 0:00:45.7]} 37...
Rxb3 {[%clk 0:00:06.4]} 38. Bf2 {[%clk 0:00:36.4]} 38... Rxd3+ {[%clk
0:00:07.4]} 39. Kg2 {[%clk 0:00:38.3]} 39... Re3 {[%clk 0:00:09.3]} 40. Kh1
{[%clk 0:00:36.8]} 40... Ree2 {[%clk 0:00:06.3]} 41. Bg1 {[%clk 0:00:35.5]}
41... Bxg1 {[%clk 0:00:07.8]} 0-1

[Event "*** Titled Tuesday 3|2 Blitz (Early)"]
[Site "Chess.com"]
[Date "2016.11.01"]
[Round "5"]
[White "NDePinEsPeRG"]
[Black "GeorgMeier"]
[Result "1-0"]
[WhiteElo "2663"]
[BlackElo "2702"]
[TimeControl "180+2"]
[EndTime "12:04:56 PDT"]
[Termination "NDePinEsPeRG won by checkmate"]

1. d4 {[%clk 0:03:01.9]} 1... Nf6 {[%clk 0:03:00]} 2. c4 {[%clk 0:03:02.4]} 2...
e6 {[%clk 0:03:01.1]} 3. Nf3 {[%clk 0:03:03.9]} 3... d5 {[%clk 0:03:01.9]} 4.
Nc3 {[%clk 0:03:05.5]} 4... Be7 {[%clk 0:03:03]} 5. Bf4 {[%clk 0:03:05.7]} 5...
O-O {[%clk 0:03:03.7]} 6. e3 {[%clk 0:03:06.7]} 6... c6 {[%clk 0:03:04.1]} 7.
Bd3 {[%clk 0:03:03.8]} 7... Nbd7 {[%clk 0:03:03]} 8. O-O {[%clk 0:03:03.2]} 8...
b6 {[%clk 0:03:04.4]} 9. Qe2 {[%clk 0:02:57.6]} 9... Bb7 {[%clk 0:03:05.5]} 10.
Rac1 {[%clk 0:02:56.8]} 10... Nh5 {[%clk 0:02:52]} 11. Be5 {[%clk 0:02:27.1]}
11... g6 {[%clk 0:02:42.6]} 12. cxd5 {[%clk 0:02:10.4]} 12... cxd5 {[%clk
0:01:35.4]} 13. Ba6 {[%clk 0:02:10.1]} 13... Bxa6 {[%clk 0:01:36.6]} 14. Qxa6
{[%clk 0:02:10.2]} 14... Qc8 {[%clk 0:01:38.1]} 15. Nxd5 {[%clk 0:02:04.9]}
15... Qd8 {[%clk 0:01:07.9]} 16. Nxe7+ {[%clk 0:01:59.5]} 16... Qxe7 {[%clk
0:01:08.9]} 17. Rc7 {[%clk 0:02:00.5]} 17... Rfd8 {[%clk 0:01:08.6]} 18. Rfc1
{[%clk 0:01:59.5]} 18... Qb4 {[%clk 0:01:03.6]} 19. b3 {[%clk 0:01:56.7]} 19...
f6 {[%clk 0:00:51.1]} 20. Bg3 {[%clk 0:01:56.3]} 20... Ng7 {[%clk 0:00:52.3]}
21. Rxa7 {[%clk 0:01:47.9]} 21... Rxa7 {[%clk 0:00:50.9]} 22. Qxa7 {[%clk
0:01:48.4]} 22... Ne8 {[%clk 0:00:43.6]} 23. h3 {[%clk 0:01:47.4]} 23... Nf8
{[%clk 0:00:40.3]} 24. Rc6 {[%clk 0:01:42.7]} 24... b5 {[%clk 0:00:36.1]} 25.
Qc5 {[%clk 0:01:21.6]} 25... Qxc5 {[%clk 0:00:34.1]} 26. Rxc5 {[%clk 0:01:20.3]}
26... Ra8 {[%clk 0:00:31.3]} 27. Rxb5 {[%clk 0:01:20.3]} 27... Rxa2 {[%clk
0:00:32.3]} 28. Rb8 {[%clk 0:01:20.9]} 28... Kf7 {[%clk 0:00:33.2]} 29. Rb7+
{[%clk 0:01:21.3]} 29... Kg8 {[%clk 0:00:34.6]} 30. h4 {[%clk 0:01:21.3]} 30...
h6 {[%clk 0:00:34.9]} 31. b4 {[%clk 0:01:14.1]} 31... g5 {[%clk 0:00:31.8]} 32.
h5 {[%clk 0:01:13.3]} 32... Rb2 {[%clk 0:00:31.9]} 33. b5 {[%clk 0:01:13.8]}
33... Rb1+ {[%clk 0:00:20]} 34. Kh2 {[%clk 0:01:13.7]} 34... Rb2 {[%clk
0:00:21.9]} 35. b6 {[%clk 0:01:14.2]} 35... Rb1 {[%clk 0:00:22.5]} 36. e4 {[%clk
0:01:13]} 36... Rb2 {[%clk 0:00:17.7]} 37. Ne1 {[%clk 0:00:57.7]} 37... Rb3
{[%clk 0:00:16.2]} 38. Nc2 {[%clk 0:00:57.9]} 38... Ng7 {[%clk 0:00:11.3]} 39.
Bd6 {[%clk 0:00:56.6]} 39... Nh7 {[%clk 0:00:12.5]} 40. g4 {[%clk 0:00:53.3]}
40... f5 {[%clk 0:00:13.4]} 41. Ne3 {[%clk 0:00:51.9]} 41... f4 {[%clk
0:00:12.1]} 42. Nc4 {[%clk 0:00:51.9]} 42... Nf6 {[%clk 0:00:13.7]} 43. Be5
{[%clk 0:00:48.4]} 43... Nxg4+ {[%clk 0:00:14.9]} 44. Kg2 {[%clk 0:00:49.8]}
44... Nxh5 {[%clk 0:00:15.9]} 45. Nd2 {[%clk 0:00:46.6]} 45... Rb2 {[%clk
0:00:15]} 46. Rb8+ {[%clk 0:00:44.4]} 46... Kf7 {[%clk 0:00:16.4]} 47. b7 {[%clk
0:00:45.7]} 47... Nhf6 {[%clk 0:00:16.2]} 48. Bxf6 {[%clk 0:00:43.8]} 48... Nxf6
{[%clk 0:00:17.5]} 49. Nc4 {[%clk 0:00:44.2]} 49... Rb4 {[%clk 0:00:17.2]} 50.
Nd6+ {[%clk 0:00:45.1]} 50... Ke7 {[%clk 0:00:18.3]} 51. e5 {[%clk 0:00:46.1]}
51... Nd7 {[%clk 0:00:19.6]} 52. Re8# {[%clk 0:00:46.4]} 1-0

[Event "*** Titled Tuesday 3|2 Blitz (Early)"]
[Site "Chess.com"]
[Date "2016.11.01"]
[Round "5"]
[White "amaidel"]
[Black "Dlugy"]
[Result "1-0"]
[WhiteElo "2499"]
[BlackElo "2578"]
[TimeControl "180+2"]
[EndTime "12:05:24 PDT"]
[Termination "amaidel won by resignation"]

1. e4 {[%clk 0:03:02]} 1... c5 {[%clk 0:03:00.5]} 2. Nf3 {[%clk 0:03:02]} 2...
d6 {[%clk 0:03:01.9]} 3. d4 {[%clk 0:03:02.7]} 3... cxd4 {[%clk 0:03:03.5]} 4.
Nxd4 {[%clk 0:03:03.7]} 4... Nf6 {[%clk 0:03:05.1]} 5. Nc3 {[%clk 0:03:04.4]}
5... Nc6 {[%clk 0:03:06.7]} 6. Be2 {[%clk 0:03:03.6]} 6... e5 {[%clk 0:03:08.1]}
7. Nf3 {[%clk 0:03:04]} 7... Be7 {[%clk 0:03:08]} 8. h3 {[%clk 0:03:04.6]} 8...
h6 {[%clk 0:03:06.4]} 9. O-O {[%clk 0:03:05.1]} 9... Be6 {[%clk 0:03:07.5]} 10.
b3 {[%clk 0:03:02.8]} 10... O-O {[%clk 0:03:08]} 11. Bb2 {[%clk 0:03:02.9]}
11... Rc8 {[%clk 0:03:08.6]} 12. Re1 {[%clk 0:03:02.5]} 12... a6 {[%clk
0:03:06.1]} 13. Bf1 {[%clk 0:03:02.7]} 13... Qa5 {[%clk 0:03:02.9]} 14. a3
{[%clk 0:02:53.9]} 14... b5 {[%clk 0:03:03.8]} 15. b4 {[%clk 0:02:52.8]} 15...
Qc7 {[%clk 0:02:55.3]} 16. Nd5 {[%clk 0:02:52.2]} 16... Bxd5 {[%clk 0:02:56.1]}
17. exd5 {[%clk 0:02:53]} 17... Nb8 {[%clk 0:02:57.7]} 18. c4 {[%clk 0:02:47.9]}
18... bxc4 {[%clk 0:02:56.4]} 19. Rc1 {[%clk 0:02:48.7]} 19... Qb7 {[%clk
0:02:56.2]} 20. Bxc4 {[%clk 0:02:44.2]} 20... Nbd7 {[%clk 0:02:56.4]} 21. Nd4
{[%clk 0:02:37.3]} 21... Rxc4 {[%clk 0:02:26]} 22. Rxc4 {[%clk 0:02:36.3]} 22...
Qxd5 {[%clk 0:02:25.9]} 23. Rc1 {[%clk 0:02:20.4]} 23... Ra8 {[%clk 0:02:02]}
24. Nf5 {[%clk 0:02:18.5]} 24... Bf8 {[%clk 0:02:03]} 25. Qxd5 {[%clk
0:02:17.2]} 25... Nxd5 {[%clk 0:02:04.1]} 26. Rc6 {[%clk 0:02:03.7]} 26... a5
{[%clk 0:01:32.9]} 27. b5 {[%clk 0:02:01.8]} 27... Rb8 {[%clk 0:01:29.8]} 28.
Nxd6 {[%clk 0:01:53]} 28... f6 {[%clk 0:01:17.7]} 29. a4 {[%clk 0:01:47.1]}
29... N5b6 {[%clk 0:01:17.4]} 30. Ra1 {[%clk 0:01:43.7]} 30... Rd8 {[%clk
0:01:11.5]} 31. Nc4 {[%clk 0:01:42]} 31... Nxc4 {[%clk 0:01:01.1]} 32. Rxc4
{[%clk 0:01:43.9]} 32... Nb6 {[%clk 0:00:53.5]} 33. Rc6 {[%clk 0:01:42.5]} 33...
Rb8 {[%clk 0:00:54.6]} 34. Bc3 {[%clk 0:01:38]} 34... Nd7 {[%clk 0:00:30.8]} 35.
Bxa5 {[%clk 0:01:37.1]} 35... Nc5 {[%clk 0:00:32.7]} 36. Bc7 {[%clk 0:01:27.9]}
36... Ra8 {[%clk 0:00:33.7]} 37. b6 {[%clk 0:01:28.2]} 37... Nb7 {[%clk
0:00:32.8]} 38. Rcc1 {[%clk 0:01:09.6]} 38... Bb4 {[%clk 0:00:29.9]} 39. Rcb1
{[%clk 0:01:10.1]} 39... Ba5 {[%clk 0:00:29.1]} 40. Rb5 {[%clk 0:01:07.1]} 40...
Kf7 {[%clk 0:00:30.1]} 41. Rd1 {[%clk 0:01:07]} 41... Ke6 {[%clk 0:00:30.8]} 42.
Kf1 {[%clk 0:01:06.8]} 42... g5 {[%clk 0:00:31]} 43. f3 {[%clk 0:01:01.9]} 43...
h5 {[%clk 0:00:30.6]} 44. g4 {[%clk 0:01:00.2]} 44... hxg4 {[%clk 0:00:30.2]}
45. hxg4 {[%clk 0:01:00.2]} 45... Rh8 {[%clk 0:00:30.2]} 46. Kg2 {[%clk
0:01:00.7]} 46... Bc3 {[%clk 0:00:22.6]} 47. Rd3 {[%clk 0:01:00]} 47... Ba5
{[%clk 0:00:21.2]} 48. Rdb3 {[%clk 0:00:56.3]} 48... Ra8 {[%clk 0:00:19]} 49.
Re3 {[%clk 0:00:51.3]} 49... Bd2 {[%clk 0:00:19.6]} 50. Re2 {[%clk 0:00:51.1]}
50... Ba5 {[%clk 0:00:18.1]} 51. Bxe5 {[%clk 0:00:42.5]} 51... fxe5 {[%clk
0:00:18.9]} 52. Rexe5+ {[%clk 0:00:43.5]} 52... Kd6 {[%clk 0:00:20.5]} 53. Rxg5
{[%clk 0:00:44.1]} 53... Kc6 {[%clk 0:00:22.2]} 54. Rg6+ {[%clk 0:00:44.4]}
54... Nd6 {[%clk 0:00:23.4]} 55. b7 {[%clk 0:00:35.6]} 55... Rb8 {[%clk
0:00:24.5]} 56. Rxa5 {[%clk 0:00:36.2]} 56... Kc7 {[%clk 0:00:25.9]} 57. Rc5+
{[%clk 0:00:36.4]} 57... Kd7 {[%clk 0:00:27.4]} 58. Rd5 {[%clk 0:00:37.3]} 58...
Rxb7 {[%clk 0:00:28.8]} 59. Rdxd6+ {[%clk 0:00:38.3]} 1-0